bitfinex/quotes_BTCUSD_20251116
["timestamp","ask_amount","ask_price","bid_price","bid_amount"]
[1763327504133,0.01956777,94042.0,94032.0,0.01491]
[1763327504340,0.01956777,94041.0,94032.0,0.01491]
[1763327504502,0.01956777,94040.0,94032.0,0.01491]
[1763327504722,0.01956777,94039.0,94032.0,0.01491]
[1763327504924,0.01956777,94038.0,94033.0,0.016401]
[1763327505121,0.01956777,94037.0,94033.0,0.016401]
[1763327505327,0.19020932,94036.0,94033.0,0.016401]
[1763327505544,0.17064,94036.0,94033.0,0.016401]
[1763327505744,0.17064,94036.0,94034.0,0.0165501]
[1763327506689,0.17064,94036.0,94035.0,0.1491]
[1763327506902,0.19021218,94036.0,94035.0,0.1491]
[1763327507058,0.20691374,94036.0,94035.0,0.1491]
[1763327507261,0.19021218,94036.0,94035.0,0.1491]
[1763327510121,0.19021218,94036.0,94034.0,0.0165501]
[1763327510322,0.01957218,94035.0,94020.0,0.0005]
[1763327510563,0.01957218,94034.0,94020.0,0.0005]
[1763327510723,0.01957218,94033.0,94020.0,0.0005]
[1763327510929,0.01957218,94032.0,94020.0,0.0005]
[1763327511106,0.01670159,94036.0,94020.0,0.0005]
[1763327511305,0.01959453,94035.0,94020.0,0.0005]
[1763327511502,0.01959453,94034.0,94020.0,0.0005]
[1763327511849,0.01959453,94033.0,94020.0,0.0005]
[1763327512039,0.01670159,94036.0,94020.0,0.0005]
[1763327512247,0.01959512,94035.0,94021.0,0.10104179]
[1763327512446,0.01670159,94036.0,94022.0,0.01015418]
[1763327512772,0.01959503,94035.0,94022.0,0.01015418]
[1763327512992,0.01959503,94034.0,94022.0,0.01015418]
[1763327513193,0.01670159,94036.0,94022.0,0.01015418]
[1763327513387,0.01959457,94035.0,94023.0,0.0111696]
[1763327513622,0.01670159,94036.0,94023.0,0.0111696]
[1763327513839,0.01959459,94035.0,94023.0,0.0111696]
[1763327514045,0.01670159,94036.0,94023.0,0.0111696]
[1763327514479,0.01959696,94035.0,94023.0,0.0111696]
[1763327514629,0.01670159,94036.0,94023.0,0.0111696]
[1763327514839,0.019597,94035.0,94024.0,0.1125]
[1763327515043,0.01670159,94036.0,94024.0,0.01241696]
[1763327515240,0.01670159,94036.0,94020.0,0.0005]
[1763327515241,0.19023657,94035.0,94020.0,0.0005]
[1763327515446,0.01959657,94034.0,94020.0,0.0005]
[1763327516041,0.01670118,94031.0,94020.0,0.0005]
[1763327517880,0.01670118,94031.0,94021.0,0.1491]
[1763327518086,0.01670118,94031.0,94023.0,0.15591874]
[1763327518299,0.01670118,94031.0,94025.0,0.15591874]
[1763327519195,0.01670118,94031.0,94026.0,0.1491]
[1763327521666,0.01670118,94031.0,94020.0,0.0005]
[1763327521922,0.01963341,94030.0,94020.0,0.0005]
[1763327522145,0.01963341,94029.0,94020.0,0.0005]
[1763327522352,0.03633631,94028.0,94020.0,0.0005]
[1763327522555,0.01963341,94027.0,94020.0,0.0005]
[1763327523354,0.01963341,94027.0,94020.0,0.01546]
[1763327524357,0.01963341,94027.0,94020.0,0.0005]
[1763327525321,0.17064,94026.0,94020.0,0.0005]
[1763327525533,0.01963341,94025.0,94020.0,0.0005]
[1763327525956,0.00030775,94024.0,94020.0,0.0005]
[1763327526157,0.01963341,94023.0,94020.0,0.0005]
[1763327526363,0.01963341,94022.0,94020.0,0.0005]
[1763327526560,0.01963341,94021.0,94020.0,0.0005]
[1763327526917,0.01963341,94025.0,94020.0,0.0005]
[1763327527132,0.01963341,94024.0,94020.0,0.0005]
[1763327527362,0.01963341,94023.0,94020.0,0.0005]
[1763327527559,0.01963341,94022.0,94020.0,0.0005]
[1763327527759,0.01963341,94021.0,94020.0,0.0005]
[1763327529149,0.0167029,94028.0,94020.0,0.0005]
[1763327529362,0.01963589,94027.0,94020.0,0.0005]
[1763327529571,0.01963589,94026.0,94020.0,0.0005]
[1763327529742,0.01963589,94025.0,94020.0,0.0005]
[1763327529946,0.01963589,94024.0,94020.0,0.0005]
[1763327530243,0.01963589,94023.0,94020.0,0.0005]
[1763327530444,0.01963589,94022.0,94020.0,0.0005]
[1763327530669,0.01963589,94021.0,94020.0,0.0005]
[1763327530991,0.01963589,94027.0,94020.0,0.0005]
[1763327532979,0.01963589,94027.0,94021.0,0.10104179]
[1763327533180,0.07071394,94068.0,94022.0,0.01015418]
[1763327533426,0.01670152,94026.0,94025.0,0.04341874]
[1763327533754,0.00013456,94026.0,94025.0,0.15591874]
[1763327533958,0.01683532,94026.0,94025.0,0.18268021]
[1763327535383,0.10215532,94026.0,94025.0,0.18268021]
[1763327535818,0.10215532,94026.0,94025.0,0.15591874]
[1763327536003,0.00013456,94026.0,94025.0,0.15591874]
[1763327536227,0.01683475,94026.0,94025.0,0.15591874]
[1763327536687,0.00013456,94026.0,94025.0,0.15591874]
[1763327536893,0.00013456,94026.0,94025.0,0.17292729]
[1763327537091,0.00013456,94026.0,94025.0,0.2152842]
[1763327538677,0.01669885,94048.0,94034.0,0.15591874]
[1763327538876,0.01669885,94048.0,94043.0,0.10104179]
[1763327539082,0.01669885,94048.0,94035.0,0.14896544]
[1763327539486,0.01961167,94047.0,94035.0,0.14896544]
[1763327539696,0.01961167,94046.0,94036.0,0.01489654]
[1763327539901,0.01669885,94048.0,94036.0,0.01489654]
[1763327540101,0.01961153,94047.0,94036.0,0.01489654]
[1763327540306,0.01961153,94046.0,94036.0,0.01489654]
[1763327540447,0.01961153,94045.0,94036.0,0.01489654]
[1763327540644,0.01669885,94048.0,94037.0,0.0163862]
[1763327540853,0.01960805,94047.0,94037.0,0.0163862]
[1763327541057,0.01960805,94046.0,94037.0,0.0163862]
[1763327541258,0.01960805,94045.0,94037.0,0.0163862]
[1763327541462,4.483e-05,94047.0,94037.0,0.0163862]
[1763327541664,0.01960654,94046.0,94038.0,0.01653516]
[1763327541868,0.01960654,94045.0,94039.0,0.14896544]
[1763327542082,4.483e-05,94047.0,94039.0,0.14896544]
[1763327542282,0.01960664,94046.0,94039.0,0.14896544]
[1763327542486,0.01960467,94045.0,94039.0,0.14896544]
[1763327542698,4.483e-05,94047.0,94039.0,0.1655155]
[1763327542961,0.01960468,94046.0,94039.0,0.1655155]
[1763327543170,0.01960468,94045.0,94039.0,0.1655155]
[1763327543409,4.483e-05,94047.0,94039.0,0.1655155]
[1763327543711,0.01960453,94046.0,94039.0,0.1655155]
[1763327543847,0.01960453,94045.0,94040.0,0.01655155]
[1763327544051,4.483e-05,94047.0,94040.0,0.01655155]
[1763327544252,0.01960431,94046.0,94040.0,0.01655155]
[1763327544566,0.01960431,94045.0,94040.0,0.01655155]
[1763327544773,0.0196021,94044.0,94032.0,0.14896544]
[1763327544980,0.0196021,94043.0,94032.0,0.14896544]
[1763327545177,0.0196021,94042.0,94032.0,0.14896544]
[1763327545384,0.1901621,94041.0,94032.0,0.14896544]
[1763327545583,0.0196021,94040.0,94032.0,0.14896544]
[1763327545840,0.0196021,94039.0,94032.0,0.14896544]
[1763327546148,0.0196021,94038.0,94032.0,0.14896544]
[1763327546262,0.00155243,94047.0,94033.0,0.01489654]
[1763327546263,0.0196021,94037.0,94033.0,0.01489654]
[1763327546464,0.0196021,94036.0,94033.0,0.01489654]
[1763327546691,0.0196021,94035.0,94033.0,0.01489654]
[1763327546893,0.01670225,94038.0,94033.0,0.01489654]
[1763327547174,0.01670175,94035.0,94033.0,0.01489654]
[1763327547817,0.01959596,94034.0,94033.0,0.01489654]
[1763327548088,0.01959596,94034.0,94022.0,0.14896544]
[1763327548289,0.01959596,94033.0,94018.0,0.1125]
[1763327548515,0.01959596,94032.0,94012.0,0.1125]
[1763327548726,0.01670175,94035.0,94012.0,0.1125]
[1763327548863,0.01959417,94034.0,94012.0,0.1125]
[1763327549066,0.01959417,94033.0,94012.0,0.1125]
[1763327549248,0.01670175,94035.0,94012.0,0.1125]
[1763327549249,0.01959417,94032.0,94012.0,0.1125]
[1763327549450,0.01959417,94031.0,94012.0,0.1125]
[1763327549692,0.01670175,94035.0,94012.0,0.1125]
[1763327549934,0.01959364,94034.0,94012.0,0.1125]
[1763327550169,0.01959364,94033.0,94012.0,0.1125]
[1763327550394,0.01959467,94032.0,94012.0,0.1125]
[1763327550591,0.01670254,94034.0,94012.0,0.1125]
[1763327550790,0.01959398,94033.0,94021.0,0.14896544]
[1763327551003,0.01959398,94032.0,94021.0,0.14896544]
[1763327551204,0.01959398,94031.0,94021.0,0.14896544]
[1763327551452,0.01959398,94030.0,94021.0,0.16391198]
[1763327551604,0.01959398,94029.0,94021.0,0.16391198]
[1763327551811,0.01959398,94028.0,94022.0,0.14896544]
[1763327552015,0.01959398,94027.0,94022.0,0.14896544]
[1763327552245,0.01959398,94026.0,94022.0,0.14896544]
[1763327552440,0.01959398,94025.0,94022.0,0.14896544]
[1763327552641,0.01959398,94024.0,94022.0,0.14896544]
[1763327552954,0.01959398,94023.0,94022.0,0.14896544]
[1763327553627,0.01959398,94023.0,94022.0,0.16391198]
[1763327553952,0.01959398,94023.0,94022.0,0.14896544]
[1763327555226,0.10491398,94023.0,94022.0,0.14896544]
[1763327555508,0.19023398,94023.0,94022.0,0.14896544]
[1763327556435,0.19023398,94023.0,94011.0,0.14896544]
[1763327556640,0.01959398,94022.0,94011.0,0.14896544]
[1763327556823,0.01959398,94021.0,94011.0,0.14896544]
[1763327557021,0.01959398,94021.0,94001.0,0.14896544]
[1763327557022,0.08550175,94021.0,94001.0,0.14896544]
[1763327557222,0.08579277,94021.0,94001.0,0.14896544]
[1763327559035,0.17994277,94021.0,94001.0,0.14896544]
[1763327559264,0.20252023,94021.0,94001.0,0.14896544]
[1763327560381,0.2192264,94021.0,94001.0,0.14896544]
[1763327560606,0.20252023,94021.0,94001.0,0.14896544]
[1763327562568,0.20252023,94021.0,93991.0,0.14896544]
[1763327563597,0.21922687,94021.0,93991.0,0.14896544]
[1763327564587,0.26264561,94021.0,93990.0,0.0001]
[1763327565192,0.21922687,94021.0,93990.0,0.0001]
[1763327565527,0.38986687,94021.0,93990.0,0.0001]
[1763327568363,0.2998391,94021.0,93990.0,0.0001]
[1763327568749,0.25793784,94021.0,93990.0,0.0001]
[1763327568946,0.25944567,94021.0,93990.0,0.0001]
[1763327572683,0.21602693,94021.0,93990.0,0.0001]
[1763327572836,0.2145191,94021.0,93990.0,0.0001]
[1763327574160,0.23122612,94021.0,93990.0,0.0001]
[1763327575422,0.40194612,94021.0,93990.0,0.0001]
[1763327575647,0.04341874,94019.0,93990.0,0.0001]
[1763327575949,0.27341871,94010.0,93990.0,0.0001]
[1763327576079,0.15390874,94001.0,93990.0,0.0001]
[1763327576279,0.17350272,94001.0,93990.0,0.0001]
[1763327576485,0.2737206,94000.0,93990.0,0.0001]
[1763327576696,0.20765053,93991.0,93990.0,0.0001]
[1763327576894,0.20765053,93991.0,93984.0,0.00022438]
[1763327576895,0.27341871,93990.0,93984.0,0.00022438]
[1763327577136,0.04341874,93984.0,93980.0,0.69216121]
[1763327577338,0.15390874,93981.0,93980.0,0.69260966]
[1763327577583,0.17350272,93981.0,93980.0,0.69260966]
[1763327577774,0.26445272,93981.0,93980.0,0.59260966]
[1763327577968,0.28733481,93981.0,93980.0,0.59260966]
[1763327578706,0.28884271,93981.0,93980.0,0.59260966]
[1763327578913,0.28733481,93981.0,93980.0,0.59260966]
[1763327579458,0.08977607,93981.0,93980.0,0.59260966]
[1763327579657,0.23805478,93981.0,93980.0,0.59260966]
[1763327579957,0.26063224,93981.0,93980.0,0.59260966]
[1763327580568,0.10649224,93981.0,93980.0,0.59260966]
[1763327580781,0.03661478,93981.0,93980.0,0.59260966]
[1763327581623,0.09980478,93981.0,93980.0,0.59260966]
[1763327581821,0.19914626,93981.0,93980.0,0.59260966]
[1763327582048,0.26514246,93981.0,93980.0,0.59260966]
[1763327582351,0.26665039,93981.0,93980.0,0.59260966]
[1763327582786,0.26665039,93981.0,93980.0,0.52813966]
[1763327583978,0.26665039,93981.0,93980.0,0.08696024]
[1763327585436,0.43737039,93981.0,93980.0,0.08696024]
[1763327585637,0.43737039,93981.0,93980.0,0.07414337]
[1763327586871,0.42716635,93981.0,93980.0,1e-08]
[1763327587084,0.21333373,93981.0,93980.0,1e-08]
[1763327587500,0.09980627,93981.0,93980.0,1e-08]
[1763327587907,0.05333287,93981.0,93980.0,1e-08]
[1763327588895,0.20656287,93981.0,93980.0,1e-08]
[1763327589268,0.07591033,93981.0,93980.0,1e-08]
[1763327589468,0.05302675,93981.0,93980.0,1e-08]
[1763327590297,0.05216492,93981.0,93980.0,1e-08]
[1763327591084,0.05247185,93981.0,93980.0,1e-08]
[1763327591315,0.03575568,93981.0,93980.0,1e-08]
[1763327592684,0.19729125,93981.0,93980.0,1e-08]
[1763327592943,0.03726367,93981.0,93980.0,1e-08]
[1763327593356,0.04153385,93981.0,93980.0,1e-08]
[1763327593919,0.04153385,93981.0,93980.0,0.06027001]
[1763327594098,0.03971893,93981.0,93980.0,0.06027001]
[1763327594505,0.05643438,93981.0,93980.0,1e-08]
[1763327595288,0.22723438,93981.0,93980.0,1e-08]
[1763327595496,0.24981184,93981.0,93980.0,0.06027001]
[1763327595720,0.24554166,93981.0,93980.0,0.06027001]
[1763327596162,0.24554166,93981.0,93980.0,1e-08]
[1763327596482,0.24704967,93981.0,93980.0,1e-08]
[1763327596682,0.24704967,93981.0,93976.0,0.00022441]
[1763327596888,0.02408547,93980.0,93976.0,0.00022441]
[1763327597527,0.02408547,93980.0,93979.0,0.06604]
[1763327597761,0.00150801,93980.0,93979.0,0.06604]
[1763327598400,0.00150801,93980.0,93976.0,0.00022441]
[1763327598827,0.00150801,93980.0,93979.0,0.06604]
[1763327599568,0.00150801,93980.0,93979.0,0.15819]
[1763327599822,0.01716362,93981.0,93979.0,0.15819]
[1763327599994,0.01716362,93981.0,93980.0,0.1178]
[1763327600404,0.00044817,93981.0,93980.0,0.1178]
[1763327601385,0.01715952,93981.0,93980.0,0.1178]
[1763327602042,0.01715952,93981.0,93980.0,0.12960244]
[1763327602182,0.01715952,93981.0,93980.0,0.17302118]
[1763327602537,0.03667514,93981.0,93980.0,0.17302118]
[1763327603154,0.01715952,93981.0,93980.0,0.17302118]
[1763327603357,0.03200711,94024.0,93994.0,0.10104179]
[1763327603552,0.01670782,94010.0,94000.0,0.03501]
[1763327603712,0.01949998,94009.0,94000.0,0.03501]
[1763327603913,0.01949998,94008.0,94001.0,0.09215]
[1763327604278,0.01949998,94007.0,94001.0,0.09215]
[1763327604470,0.01949998,94006.0,94001.0,0.09215]
[1763327604632,0.01949998,94005.0,94001.0,0.09215]
[1763327604834,0.01949998,94004.0,94001.0,0.09215]
[1763327605130,0.01949998,94003.0,94001.0,0.09215]
[1763327605357,0.19021998,94002.0,94001.0,0.09215]
[1763327606059,0.19021998,94002.0,94001.0,0.15819]
[1763327606889,0.03620763,94002.0,94001.0,0.15819]
[1763327608230,0.03620763,94002.0,94001.0,0.06604]
[1763327608440,0.03620763,94002.0,94000.0,0.03501]
[1763327608565,0.01949998,94001.0,94000.0,0.03501]
[1763327608772,0.02100806,94001.0,94000.0,0.03501]
[1763327612725,0.02100806,94001.0,94000.0,0.10105]
[1763327615418,0.19172806,94001.0,94000.0,0.10105]
[1763327615964,0.21414726,94001.0,94000.0,0.10105]
[1763327616702,0.19021998,94001.0,94000.0,0.1932]
[1763327617126,0.19021998,94001.0,94000.0,0.17542]
[1763327617467,0.1215704,94001.0,94000.0,0.17542]
[1763327618858,0.0362104,94001.0,94000.0,0.01723]
[1763327619933,0.0362104,94001.0,93995.0,0.14896544]
[1763327620136,0.01949998,94000.0,93995.0,0.14896544]
[1763327622349,0.0623,93996.0,93995.0,0.14896544]
[1763327622602,0.08179998,93996.0,93995.0,0.14896544]
[1763327622832,0.08179998,93996.0,93994.0,4.485e-05]
[1763327622833,0.17674998,93996.0,93994.0,4.485e-05]
[1763327623091,0.08724872,93995.0,93994.0,4.485e-05]
[1763327623288,0.18401792,93995.0,93994.0,4.485e-05]
[1763327625295,0.35473792,93995.0,93994.0,4.485e-05]
[1763327625500,0.3772057,93995.0,93994.0,4.485e-05]
[1763327627597,0.2064857,93995.0,93994.0,4.485e-05]
[1763327627798,0.04341874,93994.0,93990.0,0.0005]
[1763327627999,0.04341874,93994.0,93964.0,0.0058162]
[1763327628000,0.04341874,93989.0,93964.0,0.0058162]
[1763327628174,0.04341874,93980.0,93964.0,0.0058162]
[1763327628378,0.06054,93977.0,93964.0,0.0058162]
[1763327628721,0.08005894,93977.0,93964.0,0.0058162]
[1763327628875,0.17564939,93977.0,93964.0,0.0058162]
[1763327629254,0.17992034,93977.0,93964.0,0.0058162]
[1763327630209,0.17840779,93977.0,93964.0,0.0058162]
[1763327630412,0.22182653,93977.0,93964.0,0.0058162]
[1763327630677,0.15052431,93977.0,93969.0,0.03501]
[1763327630863,0.13151653,93977.0,93969.0,0.03501]
[1763327631068,0.22528653,93977.0,93964.0,0.0058162]
[1763327631267,0.24775431,93977.0,93964.0,0.0058162]
[1763327631466,0.26447148,93977.0,93964.0,0.0058162]
[1763327635429,0.43519148,93977.0,93964.0,0.0058162]
[1763327635587,0.29800274,93977.0,93968.0,0.03501]
[1763327636190,0.39177274,93977.0,93968.0,0.03501]
[1763327636594,0.14864274,93977.0,93968.0,0.03501]
[1763327636811,0.14864274,93977.0,93964.0,0.0058162]
[1763327636812,0.28394496,93977.0,93964.0,0.0058162]
[1763327637018,0.30641274,93977.0,93964.0,0.0058162]
[1763327639168,0.22105274,93977.0,93964.0,0.0058162]
[1763327639863,0.06328274,93977.0,93969.0,0.03501]
[1763327640183,0.04081496,93977.0,93969.0,0.03501]
[1763327641560,0.04081496,93977.0,93976.0,0.06475441]
[1763327641761,0.04050706,93977.0,93976.0,0.00022441]
[1763327642115,0.19858496,93977.0,93976.0,0.00022441]
[1763327642250,0.21678179,93977.0,93976.0,0.00022441]
[1763327642446,0.12301179,93977.0,93976.0,0.00022441]
[1763327642694,0.03623611,93977.0,93976.0,0.15201441]
[1763327643281,0.01951894,93977.0,93976.0,0.15201441]
[1763327643683,0.01951894,93977.0,93976.0,0.06475441]
[1763327644241,0.01951894,93977.0,93976.0,0.15201441]
[1763327645396,0.19031894,93977.0,93976.0,0.15201441]
[1763327645809,0.19031894,93977.0,93976.0,0.06475441]
[1763327646017,0.19031894,93977.0,93976.0,0.15201441]
[1763327646252,0.10491894,93977.0,93976.0,0.15201441]
[1763327646453,0.03623438,93977.0,93976.0,0.15201441]
[1763327647016,0.03623438,93977.0,93976.0,0.17087685]
[1763327647239,0.01671544,93977.0,93976.0,0.17087685]
[1763327650449,0.01671544,93977.0,93976.0,0.15201441]
[1763327654258,0.03342662,93977.0,93976.0,0.15201441]
[1763327654603,0.01671544,93977.0,93976.0,0.15201441]
[1763327655249,0.10207544,93977.0,93976.0,0.15201441]
[1763327655452,0.18743544,93977.0,93976.0,0.15201441]
[1763327655663,0.01671544,93977.0,93976.0,0.15201441]
[1763327656999,0.00151575,93989.0,93976.0,0.15201441]
[1763327657193,0.00151575,93989.0,93988.0,0.06808]
[1763327657601,0.01822804,93989.0,93988.0,0.06808]
[1763327657759,0.01822804,93989.0,93988.0,0.15534]
[1763327657973,0.01671229,93989.0,93988.0,0.15534]
[1763327659273,0.03622894,93989.0,93988.0,0.30430544]
[1763327659764,0.03622894,93989.0,93988.0,0.33473598]
[1763327659887,0.03622894,93989.0,93988.0,0.30430544]
[1763327660091,0.05294072,93989.0,93988.0,0.30430544]
[1763327662263,0.05294072,93989.0,93988.0,0.41670544]
[1763327662458,0.03342407,93989.0,93988.0,0.41670544]
[1763327662666,0.01671178,93989.0,93988.0,0.45837598]
[1763327663002,0.0167084,93993.0,93988.0,0.45837598]
[1763327663300,0.00151629,94021.0,94020.0,0.08326]
[1763327663504,0.00156111,94021.0,94020.0,0.08326]
[1763327663640,0.0017934,94021.0,94020.0,0.01778]
[1763327664139,0.02133354,94021.0,94020.0,0.01778]
[1763327665131,0.02133354,94021.0,94014.0,0.01778]
[1763327665336,0.19026014,94020.0,94014.0,0.01778]
[1763327665555,0.01954014,94019.0,94014.0,0.01778]
[1763327665742,0.06278,94015.0,93998.0,0.01778]
[1763327665945,0.01954014,94014.0,93998.0,0.01778]
[1763327666146,0.01999998,94010.0,93998.0,0.01778]
[1763327666360,0.01954014,94009.0,93998.0,0.01778]
[1763327666495,0.01954014,94008.0,93998.0,0.01778]
[1763327666898,0.01977243,94007.0,93998.0,0.01778]
[1763327667097,0.01954014,94006.0,93998.0,0.01778]
[1763327667502,0.01977243,94005.0,93998.0,0.01778]
[1763327667726,0.01954014,94004.0,93998.0,0.01778]
[1763327668190,0.01954014,94003.0,93998.0,0.01778]
[1763327668392,0.01954014,94002.0,93998.0,0.01778]
[1763327668549,0.01954014,94001.0,93998.0,0.01778]
[1763327668751,0.01954014,94000.0,93998.0,0.01778]
[1763327669084,0.01999998,94010.0,93999.0,0.14896544]
[1763327669286,0.0195557,94009.0,93999.0,0.14896544]
[1763327669490,0.0195557,94008.0,93999.0,0.14896544]
[1763327669698,0.0195557,94007.0,93999.0,0.14896544]
[1763327669874,0.0195557,94006.0,93999.0,0.14896544]
[1763327670079,0.0195557,94005.0,93999.0,0.14896544]
[1763327670299,0.0195557,94004.0,93999.0,0.14896544]
[1763327670477,0.0195557,94003.0,93999.0,0.14896544]
[1763327670693,0.0195557,94002.0,93999.0,0.14896544]
[1763327670860,0.0195557,94001.0,93999.0,0.14896544]
[1763327671065,0.0195557,94000.0,93999.0,0.14896544]
[1763327671472,0.0195557,94009.0,93999.0,0.14896544]
[1763327671708,0.0195557,94008.0,93999.0,0.14896544]
[1763327671890,0.0195557,94007.0,93999.0,0.14896544]
[1763327672091,0.0195557,94006.0,93999.0,0.14896544]
[1763327672323,0.0195557,94005.0,93999.0,0.14896544]
[1763327672487,0.0195557,94004.0,93999.0,0.14896544]
[1763327672690,0.0195557,94003.0,93999.0,0.14896544]
[1763327672905,0.0195557,94002.0,93999.0,0.14896544]
[1763327673110,0.0195557,94001.0,93999.0,0.14896544]
[1763327673309,0.0195557,94000.0,93999.0,0.14896544]
[1763327673509,0.35781567,94000.0,93989.0,0.14896544]
[1763327673714,0.18642348,93999.0,93986.0,0.14896544]
[1763327673880,0.0195557,93998.0,93986.0,0.14896544]
[1763327674244,0.0198411,93997.0,93986.0,0.14896544]
[1763327674466,0.0195557,93996.0,93986.0,0.14896544]
[1763327674681,0.0195557,93995.0,93986.0,0.14896544]
[1763327674860,0.0195557,93994.0,93986.0,0.14896544]
[1763327675065,0.0195557,93993.0,93986.0,0.14896544]
[1763327675226,0.1049157,93992.0,93986.0,0.14896544]
[1763327675426,0.0195557,93991.0,93986.0,0.14896544]
[1763327675717,0.0195557,93990.0,93986.0,0.14896544]
[1763327675885,0.0195557,93989.0,93986.0,0.14896544]
[1763327676041,0.0195557,93988.0,93986.0,0.14896544]
[1763327676239,0.0195557,93987.0,93986.0,0.14896544]
[1763327676446,0.01960049,93987.0,93986.0,0.14896544]
[1763327676857,0.01988589,93987.0,93986.0,0.06548]
[1763327677972,0.01960049,93987.0,93986.0,0.17768054]
[1763327678192,0.01960049,93987.0,93986.0,0.15274]
[1763327679709,0.03631046,93987.0,93986.0,0.15274]
[1763327684127,0.03631046,93987.0,93983.0,0.14896544]
[1763327684311,0.0195557,93986.0,93983.0,0.23622544]
[1763327684523,0.0195557,93986.0,93983.0,0.14896544]
[1763327684728,0.0195557,93986.0,93985.0,0.06548]
[1763327685124,0.0195557,93986.0,93985.0,0.15274]
[1763327685328,0.1902757,93986.0,93985.0,0.15274]
[1763327685728,0.1902757,93986.0,93985.0,0.06548]
[1763327686047,0.1902757,93986.0,93985.0,0.15274]
[1763327686356,0.21274348,93986.0,93985.0,0.15274]
[1763327690089,0.12738348,93986.0,93985.0,0.15274]
[1763327690265,0.0195557,93986.0,93985.0,0.15274]
[1763327691879,0.0195557,93986.0,93985.0,0.30170544]
[1763327692113,4.479e-05,93987.0,93985.0,0.30170544]
[1763327692312,4.479e-05,93987.0,93986.0,0.13494]
[1763327693484,0.01675429,93987.0,93986.0,0.13494]
[1763327695387,0.18747429,93987.0,93986.0,0.13494]
[1763327695914,0.18747429,93987.0,93986.0,0.15820781]
[1763327696147,0.10211429,93987.0,93986.0,0.15820781]
[1763327696975,0.10211429,93987.0,93986.0,0.13494]
[1763327698852,0.04645435,94019.0,93986.0,0.13494]
[1763327698853,0.25532999,94050.0,93992.0,0.1124]
[1763327699065,0.02999997,94040.0,94014.0,0.04771]
[1763327699268,0.01960803,94039.0,94014.0,0.04771]
[1763327699471,0.02999997,94040.0,94014.0,0.04771]
[1763327699472,0.01960803,94038.0,94015.0,0.13089]
[1763327699715,0.01960803,94037.0,94015.0,0.13089]
[1763327699921,0.01960803,94036.0,94016.0,0.08726]
[1763327700162,0.01960803,94035.0,94017.0,0.013089]
[1763327700383,0.01960803,94034.0,94017.0,0.013089]
[1763327700601,0.01960803,94033.0,94018.0,0.08726]
[1763327700814,0.01129047,94040.0,94018.0,0.08726]
[1763327700815,0.01960803,94032.0,94018.0,0.08726]
[1763327701033,0.00999999,94030.0,94015.0,0.04363]
[1763327701250,0.01960803,94029.0,94016.0,0.100349]
[1763327701465,0.01960803,94028.0,94016.0,0.100349]
[1763327701690,4.487e-05,94050.0,94027.0,0.06014]
[1763327701914,4.487e-05,94050.0,94049.0,0.04806]
[1763327702396,4.487e-05,94050.0,94049.0,0.09612]
[1763327702606,0.01674707,94050.0,94049.0,0.09612]
[1763327703487,0.01674707,94050.0,94032.0,0.04806]
[1763327703893,0.04533,94049.0,94028.0,0.006014]
[1763327704044,0.01674707,94050.0,94029.0,0.0534674]
[1763327704452,0.00030709,94049.0,94029.0,0.0054074]
[1763327704651,0.00030709,94049.0,94023.0,0.04806]
[1763327705431,0.17064,94048.0,94023.0,0.04806]
[1763327705824,0.00030709,94047.0,94023.0,0.04806]
[1763327706123,0.01670387,94042.0,94023.0,0.04806]
[1763327706559,0.01670387,94042.0,94041.0,0.04806]
[1763327707528,0.01670387,94042.0,94041.0,0.09612]
[1763327707710,0.01670387,94042.0,94041.0,0.04806]
[1763327708592,0.01670387,94042.0,94041.0,0.09612]
[1763327710615,0.01670387,94042.0,94041.0,0.116972]
[1763327711064,0.01670387,94042.0,94041.0,0.229372]
[1763327714141,0.01670387,94042.0,94041.0,0.20852]
[1763327715305,0.18734387,94042.0,94041.0,0.20852]
[1763327716288,0.17064,94042.0,94041.0,0.20852]
[1763327717191,0.17064,94042.0,94041.0,0.09612]
[1763327717498,4.487e-05,94050.0,94041.0,0.09612]
[1763327717748,0.01948968,94049.0,94042.0,0.057672]
[1763327717936,0.01948968,94048.0,94042.0,0.04806]
[1763327718137,0.01948968,94047.0,94042.0,0.04806]
[1763327718385,0.01948968,94046.0,94042.0,0.04806]
[1763327718664,0.01948968,94045.0,94042.0,0.04806]
[1763327718878,0.01948968,94044.0,94042.0,0.04806]
[1763327719057,0.01948968,94043.0,94042.0,0.04806]
[1763327719458,0.01948968,94049.0,94042.0,0.09612]
[1763327719662,0.01948968,94048.0,94042.0,0.057672]
[1763327719858,0.01948968,94047.0,94043.0,0.04806]
[1763327720065,0.01948968,94046.0,94043.0,0.04806]
[1763327720276,0.01948968,94045.0,94043.0,0.04806]
[1763327720653,0.01948968,94044.0,94043.0,0.04806]
[1763327721080,0.01948968,94049.0,94043.0,0.09613]
[1763327721324,0.01948968,94048.0,94043.0,0.04806]
[1763327721554,0.01948968,94047.0,94044.0,0.04807]
[1763327721772,0.01948968,94046.0,94044.0,0.04807]
[1763327721988,0.01948968,94045.0,94044.0,0.04807]
[1763327722203,4.487e-05,94050.0,94049.0,0.04807]
[1763327722417,0.01957037,94050.0,94049.0,0.04807]
[1763327722629,4.487e-05,94050.0,94049.0,0.25471944]
[1763327723873,4.487e-05,94050.0,94049.0,0.29813818]
[1763327724175,4.487e-05,94050.0,94049.0,0.41053818]
[1763327724378,4.487e-05,94050.0,94049.0,0.29813818]
[1763327725427,0.08536487,94050.0,94049.0,0.29813818]
[1763327725965,0.08536487,94050.0,94049.0,0.24510544]
[1763327726491,0.10490657,94050.0,94049.0,0.24510544]
[1763327726667,0.12160538,94050.0,94049.0,0.24510544]
[1763327727069,0.10490657,94050.0,94049.0,0.24510544]
[1763327728970,0.01958657,94050.0,94049.0,0.24510544]
[1763327729369,0.01958657,94050.0,94049.0,0.04807]
[1763327729770,0.01958657,94050.0,94049.0,0.09614]
[1763327730219,0.01958657,94050.0,94049.0,0.095968]
[1763327730557,0.01958657,94050.0,94049.0,0.095425]
[1763327732484,0.01958657,94050.0,94049.0,0.24439044]
[1763327732695,0.01958657,94050.0,94049.0,0.26882948]
[1763327732871,0.01958657,94050.0,94049.0,0.26382948]
[1763327733503,0.03628579,94050.0,94049.0,0.23939044]
[1763327733705,0.03628579,94050.0,94049.0,0.19132044]
[1763327733875,0.03628579,94050.0,94049.0,0.23368044]
[1763327734321,0.03628579,94050.0,94049.0,0.19132044]
[1763327735104,0.03728579,94050.0,94049.0,0.19132044]
[1763327735319,0.20784579,94050.0,94049.0,0.19132044]
[1763327735638,0.20684579,94050.0,94049.0,0.19132044]
[1763327735968,0.20784579,94050.0,94049.0,0.19132044]
[1763327736341,0.03728579,94050.0,94049.0,0.19132044]
[1763327736557,0.03728579,94050.0,94049.0,0.14896544]
[1763327736558,0.03628579,94050.0,94049.0,0.14896544]